fUSD/lending_fUSD_20240104
["ID","MTS","AMOUNT","RATE_DAILY","PERIOD"]
[310158723,1704384701204,-1117.49,0.00035068,2]
[310158724,1704384701222,-674.55,0.00035068,2]
[310158725,1704384701240,-500.0,0.00035068,2]
[310158726,1704384701257,-677.2,0.00035068,2]
[310158727,1704384701277,-500.0,0.00035068,2]
[310158728,1704384701296,-500.0,0.00035068,2]
[310158729,1704384701309,-500.0,0.00035068,2]
[310158730,1704384701326,-500.0,0.00035068,2]
[310158731,1704384701344,-782.63,0.00035068,2]
[310158732,1704384701359,-500.0,0.00035068,2]
[310158733,1704384701375,-500.0,0.00035068,2]
[310158734,1704384701391,-510.31,0.00035068,2]
[310158735,1704384701407,-901.96,0.00035068,2]
[310158736,1704384701422,-500.0,0.00035068,2]
[310158737,1704384701438,-662.32,0.00035068,2]
[310158738,1704384701453,-830.54,0.00035068,2]
[310158739,1704384701469,-500.0,0.00035068,2]
[310158740,1704384701489,-500.0,0.00035068,2]
[310158741,1704384701503,-1824.67,0.00035068,2]
[310158742,1704384701518,-500.0,0.00035068,2]
[310158743,1704384701533,-931.95,0.00035068,2]
[310158744,1704384701548,-500.0,0.00035068,2]
[310158745,1704384701563,-500.0,0.00035068,2]
[310158746,1704384701578,-500.0,0.00035068,2]
[310158747,1704384701594,-654.3,0.00035068,2]
[310158748,1704384701612,-500.0,0.00035068,2]
[310158749,1704384701626,-500.0,0.00035068,2]
[310158750,1704384701641,-500.0,0.00035068,2]
[310158751,1704384701658,-500.0,0.00035068,2]
[310158752,1704384701674,-1130.23,0.00035068,2]
[310158753,1704384701702,-500.0,0.00035068,2]
[310158754,1704384701727,-500.0,0.00035068,2]
[310158755,1704384701749,-559.43,0.00035068,2]
[310158756,1704384701769,-500.0,0.00035068,2]
[310158757,1704384701792,-500.0,0.00035068,2]
[310158758,1704384701813,-1026.82,0.00035068,2]
[310158759,1704384701832,-500.0,0.00035068,2]
[310158760,1704384701850,-500.0,0.00035068,2]
[310158761,1704384701870,-586.09,0.00035068,2]
[310158762,1704384701889,-574.52,0.00035068,2]
[310158763,1704384701907,-500.0,0.00035068,2]
[310158764,1704384701926,-593.19,0.00035068,2]
[310158765,1704384701942,-633.75,0.00035068,2]
[310158766,1704384701958,-731.33,0.00035068,2]
[310158767,1704384701975,-756.82,0.00035068,2]
[310158768,1704384701991,-277.44980858,0.00035068,2]
[310158769,1704384702006,-500.0,0.00035068,2]
[310158770,1704384702022,-500.0,0.00035068,2]
[310158771,1704384702038,-500.0,0.00035068,2]
[310158772,1704384702054,-812.26,0.00035068,2]
[310158773,1704384702069,-642.48,0.00035068,2]
[310158774,1704384702085,-500.0,0.00035068,2]
[310158775,1704384702099,-500.0,0.00035068,2]
[310158776,1704384702116,-500.0,0.00035068,2]
[310158777,1704384702132,-995.06,0.00035068,2]
[310158778,1704384702155,-1428.61,0.00035068,2]
[310158779,1704384702175,-500.0,0.00035068,2]
[310158780,1704384702196,-500.0,0.00035068,2]
[310158781,1704384702213,-500.0,0.00035068,2]
[310158782,1704384702231,-719.19,0.00035068,2]
[310158783,1704384702249,-500.0,0.00035068,2]
[310158784,1704384702266,-966.27,0.00035068,2]
[310158785,1704384702284,-737.41,0.00035068,2]
[310158786,1704384702304,-500.0,0.00035068,2]
[310158787,1704384702317,-683.25,0.00035068,2]
[310158788,1704384702327,-708.7,0.00035068,2]
[310158789,1704384702337,-500.0,0.00035068,2]
[310158790,1704384702346,-1313.57,0.00035068,2]
[310158791,1704384702357,-537.81,0.00035068,2]
[310158792,1704384702370,-978.7,0.00035068,2]
[310158793,1704384702380,-500.0,0.00035068,2]
[310158794,1704384702390,-855.47,0.00035068,2]
[310158795,1704384702400,-500.0,0.00035068,2]
[310158796,1704384702412,-500.0,0.00035068,2]
[310158797,1704384702422,-500.0,0.00035068,2]
[310158798,1704384702432,-504.3,0.00035068,2]
[310158799,1704384702442,-500.0,0.00035068,2]
[310158800,1704384702452,-758.78,0.00035068,2]
[310158801,1704384702462,-500.0,0.00035068,2]
[310158802,1704384702472,-500.0,0.00035068,2]
[310158803,1704384702483,-500.0,0.00035068,2]
[310158804,1704384702493,-500.0,0.00035068,2]
[310158805,1704384702504,-1007.26,0.00035068,2]
[310158806,1704384702514,-500.0,0.00035068,2]
[310158807,1704384702525,-500.0,0.00035068,2]
[310158808,1704384702535,-500.0,0.00035068,2]
[310158809,1704384702546,-500.0,0.00035068,2]
[310158810,1704384702557,-500.0,0.00035068,2]
[310158811,1704384702567,-691.87,0.00035068,2]
[310158812,1704384702578,-944.11,0.00035068,2]
[310158813,1704384702587,-1634.31,0.00035068,2]
[310158814,1704384702598,-500.0,0.00035068,2]
[310158815,1704384702609,-1332.99,0.00035068,2]
[310158816,1704384702620,-500.0,0.00035068,2]
[310158817,1704384702633,-1233.69,0.00035068,2]
[310158818,1704384702643,-500.0,0.00035068,2]
[310158819,1704384702654,-1754.71,0.00035068,2]
[310158820,1704384702664,-650.36,0.00035068,2]
[310158821,1704384702674,-602.68,0.00035068,2]
[310158822,1704384702703,-1493.68,0.00035068,2]
[310158823,1704384702713,-500.0,0.00035068,2]
[310158824,1704384702723,-705.76,0.00035068,2]
[310158825,1704384702733,-1386.7,0.00035068,2]
[310158826,1704384702743,-1253.93,0.00035068,2]
[310158827,1704384702752,-500.0,0.00035068,2]
[310158828,1704384702762,-712.45,0.00035068,2]
[310158829,1704384702773,-1385.49,0.00035068,2]
[310158830,1704384702783,-719.5,0.00035068,2]
[310158831,1704384702793,-795.9,0.00035068,2]
[310158832,1704384702803,-614.02,0.00035068,2]
[310158833,1704384702813,-500.0,0.00035068,2]
[310158834,1704384702824,-500.0,0.00035068,2]
[310158835,1704384702835,-702.74,0.00035068,2]
[310158836,1704384702846,-2346.06,0.00035068,2]
[310158837,1704384702857,-782.01,0.00035068,2]
[310158838,1704384702868,-1144.21,0.00035068,2]
[310158839,1704384702878,-500.0,0.00035068,2]
[310158840,1704384702889,-825.04,0.00035068,2]
[310158841,1704384702899,-759.74,0.00035068,2]
[310158842,1704384702909,-500.0,0.00035068,2]
[310158843,1704384702919,-500.0,0.00035068,2]
[310158844,1704384703627,-591.92,0.00035068,2]
[310158845,1704384703652,-1538.71,0.00035068,2]
[310158846,1704384703673,-500.0,0.00035068,2]
[310158847,1704384703694,-1209.37,0.00035068,2]
[310158848,1704384703715,-500.0,0.00035068,2]
[310158849,1704384703727,-1769.02,0.00035068,2]
[310158850,1704384703738,-500.0,0.00035068,2]
[310158851,1704384703748,-500.0,0.00035068,2]
[310158852,1704384703757,-1608.02,0.00035068,2]
[310158853,1704384703767,-500.0,0.00035068,2]
[310158854,1704384703777,-500.0,0.00035068,2]
[310158855,1704384703787,-866.14,0.00035068,2]
[310158856,1704384703796,-3238.36,0.00035068,2]
[310158857,1704384703806,-597.7,0.00035068,2]
[310158858,1704384703815,-1312.71,0.00035068,2]
[310158859,1704384703825,-500.0,0.00035068,2]
[310158860,1704384703834,-758.49,0.00035068,2]
[310158861,1704384703843,-861.13,0.00035068,2]
[310158862,1704384703853,-500.0,0.00035068,2]
[310158863,1704384703864,-554.04,0.00035068,2]
[310158864,1704384703873,-500.0,0.00035068,2]
[310158865,1704384703883,-910.85,0.00035068,2]
[310158866,1704384703893,-647.07,0.00035068,2]
[310158867,1704384703902,-596.22,0.00035068,2]
[310158868,1704384703912,-840.62,0.00035068,2]
[310158869,1704384703921,-552.48,0.00035068,2]
[310158870,1704384703931,-859.39,0.00035068,2]
[310158871,1704384703941,-1225.89,0.00035068,2]
[310158872,1704384703951,-957.37,0.00035068,2]
[310158873,1704384703960,-765.17,0.00035068,2]
[310158874,1704384703970,-562.44,0.00035068,2]
[310158875,1704384703980,-659.69,0.00035068,2]
[310158876,1704384703989,-500.0,0.00035068,2]
[310158877,1704384703999,-1445.4,0.00035068,2]
[310158878,1704384704009,-500.0,0.00035068,2]
[310158879,1704384704018,-704.58,0.00035068,2]
[310158880,1704384704028,-616.78,0.00035068,2]
[310158881,1704384704037,-683.51,0.00035068,2]
[310158882,1704384704047,-661.23,0.00035068,2]
[310158883,1704384704056,-529.83,0.00035068,2]
[310158884,1704384704065,-500.0,0.00035068,2]
[310158885,1704384704075,-500.0,0.00035068,2]
[310158886,1704384704084,-782.54,0.00035068,2]
[310158887,1704384704093,-588.15,0.00035068,2]
[310158888,1704384704103,-1195.11,0.00035068,2]
[310158889,1704384704114,-674.54,0.00035068,2]
[310158890,1704384704127,-1310.86,0.00035068,2]
[310158891,1704384704136,-831.54,0.00035068,2]
[310158892,1704384704145,-500.0,0.00035068,2]
[310158893,1704384704155,-500.0,0.00035068,2]
[310158894,1704384704164,-1025.23,0.00035068,2]
[310158895,1704384704174,-1101.26,0.00035068,2]
[310158896,1704384704183,-785.28,0.00035068,2]
[310158897,1704384704193,-705.23,0.00035068,2]
[310158898,1704384704203,-500.0,0.00035068,2]
[310158899,1704384704212,-1065.41,0.00035068,2]
[310158900,1704384704222,-500.0,0.00035068,2]
[310158901,1704384704231,-1054.98,0.00035068,2]
[310158902,1704384704241,-995.7,0.00035068,2]
[310158903,1704384704252,-744.22,0.00035068,2]
[310158904,1704384704262,-500.0,0.00035068,2]
[310158905,1704384704276,-500.0,0.00035068,2]
[310158906,1704384704287,-1427.22,0.00035068,2]
[310158907,1704384704297,-1238.86,0.00035068,2]
[310158908,1704384704308,-742.23,0.00035068,2]
[310158909,1704384704318,-887.92,0.00035068,2]
[310158910,1704384704327,-500.0,0.00035068,2]
[310158911,1704384704337,-666.3,0.00035068,2]
[310158912,1704384704346,-907.32,0.00035068,2]
[310158913,1704384704356,-500.0,0.00035068,2]
[310158914,1704384704370,-500.0,0.00035068,2]
[310158915,1704384704380,-702.86,0.00035068,2]
[310158916,1704384704390,-500.0,0.00035068,2]
[310158917,1704384704400,-500.0,0.00035068,2]
[310158918,1704384704410,-945.74,0.00035068,2]
[310158919,1704384704420,-920.91,0.00035068,2]
[310158920,1704384704431,-500.0,0.00035068,2]
[310158921,1704384704441,-1400.63,0.00035068,2]
[310158922,1704384704450,-672.89,0.00035068,2]
[310158923,1704384704461,-535.81,0.00035068,2]
[310158924,1704384704472,-500.0,0.00035068,2]
[310158925,1704384704481,-500.0,0.00035068,2]
[310158926,1704384704492,-500.0,0.00035068,2]
[310158927,1704384704502,-500.0,0.00035068,2]
[310158928,1704384704512,-750.79,0.00035068,2]
[310158929,1704384704521,-523.13,0.00035068,2]
[310158930,1704384704531,-1057.28,0.00035068,2]
[310158931,1704384704541,-1335.29,0.00035068,2]
[310158932,1704384704552,-500.0,0.00035068,2]
[310158933,1704384704562,-878.66,0.00035068,2]
[310158934,1704384704572,-500.0,0.00035068,2]
[310158935,1704384704582,-1605.48,0.00035068,2]
[310158936,1704384704591,-318.28952346,0.00035068,2]
[310158937,1704384704601,-500.0,0.00035068,2]
[310158938,1704384704614,-500.0,0.00035068,2]
[310158939,1704384704624,-500.0,0.00035068,2]
[310158940,1704384704634,-1736.22,0.00035068,2]
[310158941,1704384704643,-500.0,0.00035068,2]
[310158942,1704384704653,-762.22,0.00035068,2]
[310158943,1704384704662,-847.37,0.00035068,2]
[310158944,1704384704672,-500.0,0.00035068,2]
[310158945,1704384704682,-668.67,0.00035068,2]
[310158946,1704384704692,-1025.7,0.00035068,2]
[310158947,1704384704702,-500.0,0.00035068,2]
[310158948,1704384704712,-530.17,0.00035068,2]
[310158949,1704384704721,-500.0,0.00035068,2]
[310158950,1704384704731,-500.0,0.00035068,2]
[310158951,1704384704740,-500.0,0.00035068,2]
[310158952,1704384704750,-790.72,0.00035068,2]
[310158953,1704384704760,-959.6,0.00035068,2]
[310158954,1704384704770,-500.0,0.00035068,2]
[310158955,1704384704779,-516.03,0.00035068,2]
[310158956,1704384704789,-506.97,0.00035068,2]
[310158957,1704384704799,-873.69,0.00035068,2]
[310158958,1704384704809,-500.0,0.00035068,2]
[310158959,1704384704818,-500.0,0.00035068,2]
[310158960,1704384704828,-1032.21,0.00035068,2]
[310158961,1704384704838,-529.99,0.00035068,2]
[310158962,1704384704848,-500.0,0.00035068,2]
[310158963,1704384704859,-917.61,0.00035068,2]
[310158964,1704384704869,-500.0,0.00035068,2]
[310158965,1704384704879,-554.96360508,0.00035068,2]
[310158966,1704384704889,-500.0,0.00035068,2]
[310158967,1704384704899,-610.7,0.00035068,2]
[310158968,1704384704909,-1220.03,0.00035068,2]
[310158969,1704384704919,-1169.06,0.00035068,2]
[310158970,1704384704929,-500.0,0.00035068,2]
[310158971,1704384704939,-534.36,0.00035068,2]
[310158972,1704384704949,-631.5,0.00035068,2]
[310158973,1704384704959,-1507.11,0.00035068,2]
[310158974,1704384704969,-680.74,0.00035068,2]
[310158975,1704384704979,-500.0,0.00035068,2]
[310158976,1704384704989,-500.0,0.00035068,2]
[310158977,1704384704999,-2169.33,0.00035068,2]
[310158978,1704384705009,-500.0,0.00035068,2]
[310158979,1704384705019,-2030.09,0.00035068,2]
[310158980,1704384705028,-500.0,0.00035068,2]
[310158981,1704384705038,-1479.9,0.00035068,2]
[310158982,1704384705048,-500.0,0.00035068,2]
[310158983,1704384705057,-500.0,0.00035068,2]
[310158984,1704384705067,-500.0,0.00035068,2]
[310158985,1704384705076,-822.67,0.00035068,2]
[310158986,1704384705086,-1227.94,0.00035068,2]
[310158987,1704384705095,-3860.65,0.00035068,2]
[310158988,1704384705105,-500.0,0.00035068,2]
[310158989,1704384705118,-1694.53,0.00035068,2]
[310158990,1704384705127,-500.0,0.00035068,2]
[310158991,1704384705137,-654.78,0.00035068,2]
[310158992,1704384705147,-675.26,0.00035068,2]
[310158993,1704384705157,-1024.69,0.00035068,2]
[310158994,1704384705166,-2166.67,0.00035068,2]
[310158995,1704384705176,-500.0,0.00035068,2]
[310158996,1704384705186,-500.0,0.00035068,2]
[310158997,1704384705195,-644.95,0.00035068,2]
[310158998,1704384705205,-6237.21,0.00035068,2]
[310158999,1704384705215,-2236.13,0.00035068,2]
[310159000,1704384705225,-500.0,0.00035068,2]
[310159001,1704384705234,-500.0,0.00035068,2]
[310159002,1704384705244,-500.0,0.00035068,2]
[310159003,1704384705254,-1565.67,0.00035068,2]
[310159004,1704384705264,-748.67,0.00035068,2]
[310159005,1704384705273,-1806.87,0.00035068,2]
[310159006,1704384705283,-500.0,0.00035068,2]
[310159007,1704384705293,-500.0,0.00035068,2]
[310159008,1704384705303,-1248.14,0.00035068,2]
[310159009,1704384705314,-7320.87,0.00035068,2]
[310159010,1704384705325,-500.0,0.00035068,2]
[310159011,1704384705335,-500.0,0.00035068,2]
[310159012,1704384705345,-615.50317672,0.00035068,2]
[310159013,1704384705355,-596.18,0.00035068,2]
[310159014,1704384705368,-712.06,0.00035068,2]
[310159015,1704384705377,-583.13,0.00035068,2]
[310159016,1704384705387,-1160.21,0.00035068,2]
[310159017,1704384705397,-1547.86,0.00035068,2]
[310159018,1704384705407,-1053.44,0.00035068,2]
[310159019,1704384705417,-11509.81,0.00035068,2]
[310159020,1704384705427,-500.0,0.00035068,2]
[310159021,1704384705437,-4480.87,0.00035068,2]
[310159022,1704384705447,-500.0,0.00035068,2]
[310159023,1704384705459,-983.01,0.00035068,2]
[310159024,1704384705469,-500.0,0.00035068,2]
[310159025,1704384705479,-22757.31,0.00035068,2]
[310159026,1704384705489,-1810.3,0.00035068,2]
[310159027,1704384705499,-500.0,0.00035068,2]
[310159028,1704384705509,-500.0,0.00035068,2]
[310159029,1704384705520,-10482.29,0.00035068,2]
[310159030,1704384705530,-1146.84,0.00035068,2]
[310159031,1704384705540,-682.62,0.00035068,2]
[310159032,1704384705550,-646.84,0.00035068,2]
[310159033,1704384705559,-541.34632991,0.00035068,2]
[310159034,1704384705569,-2236.54,0.00035068,2]
[310159035,1704384705580,-5241.12,0.00035068,2]
[310159036,1704384705590,-3000.04,0.00035068,2]
[310159037,1704384705600,-562.73,0.00035068,2]
[310159038,1704384705613,-1267.2,0.00035068,2]
[310159039,1704384705622,-570.19,0.00035068,2]
[310159040,1704384705633,-1044.59,0.00035068,2]
[310159041,1704384705643,-1733.36,0.00035068,2]
[310159042,1704384705653,-506.99,0.00035068,2]
[310159043,1704384705663,-197.07197718,0.00035068,2]
[310159044,1704384705673,-2344.65,0.00035068,2]
[310159045,1704384705684,-500.0,0.00035068,2]
[310159046,1704384705694,-500.0,0.00035068,2]
[310159047,1704384705704,-500.0,0.00035068,2]
[310159048,1704384705714,-1148.98,0.00035068,2]
[310159049,1704384705725,-3957.27,0.00035068,2]
[310159050,1704384705735,-500.0,0.00035068,2]
[310159051,1704384705745,-666.95,0.00035068,2]
[310159052,1704384705755,-4906.37,0.00035068,2]
[310159053,1704384705767,-781.77,0.00035068,2]
[310159054,1704384705778,-3313.6,0.00035068,2]
[310159055,1704384705791,-500.0,0.00035068,2]
[310159056,1704384705801,-500.0,0.00035068,2]
[310159057,1704384705811,-500.0,0.00035068,2]
[310159058,1704384705821,-1046.86,0.00035068,2]
[310159059,1704384705831,-150.0,0.00035068,2]
[310159060,1704384705843,-521.63,0.00035068,2]
[310159061,1704384705854,-500.0,0.00035068,2]
[310159062,1704384705866,-3795.31,0.00035068,2]
[310159063,1704384705876,-941.09,0.00035068,2]
[310159064,1704384705886,-744.5,0.00035068,2]
[310159065,1704384705896,-680.9,0.00035068,2]
[310159066,1704384705906,-40011.89,0.00035068,2]
[310159067,1704384705916,-4440.8,0.00035068,2]
[310159068,1704384705926,-3124.54,0.00035068,2]
[310159069,1704384705937,-575.77,0.00035068,2]
[310159070,1704384705946,-529.49,0.00035068,2]
[310159071,1704384705957,-500.0,0.00035068,2]
[310159072,1704384705967,-500.0,0.00035068,2]
[310159073,1704384705977,-500.0,0.00035068,2]
[310159074,1704384705987,-500.0,0.00035068,2]
[310159075,1704384705996,-500.0,0.00035068,2]
[310159076,1704384706006,-500.0,0.00035068,2]
[310159077,1704384706016,-500.0,0.00035068,2]
[310159078,1704384706026,-566.18,0.00035068,2]
[310159079,1704384706036,-500.0,0.00035068,2]
[310159080,1704384706046,-500.0,0.00035068,2]
[310159081,1704384706057,-1416.07,0.00035068,2]
[310159082,1704384706067,-11794.58,0.00035068,2]
[310159083,1704384706078,-500.0,0.00035068,2]
[310159084,1704384706087,-500.0,0.00035068,2]
[310159085,1704384706097,-1935.18,0.00035068,2]
[310159086,1704384706106,-1254.54,0.00035068,2]
[310159087,1704384706118,-545.98822966,0.00035068,2]
[310159088,1704384706129,-500.0,0.00035068,2]
[310159089,1704384706139,-500.0,0.00035068,2]
[310159090,1704384706149,-2189.6,0.00035068,2]
[310159091,1704384706159,-500.0,0.00035068,2]
[310159092,1704384706168,-500.0,0.00035068,2]
[310159093,1704384706179,-500.0,0.00035068,2]
[310159094,1704384706188,-1093.1,0.00035068,2]
[310159095,1704384706198,-746.5,0.00035068,2]
[310159096,1704384706208,-500.0,0.00035068,2]
[310159097,1704384706218,-1922.89,0.00035068,2]
[310159098,1704384706229,-500.0,0.00035068,2]
[310159099,1704384706239,-500.0,0.00035068,2]
[310159100,1704384706249,-3029.2,0.00035068,2]
[310159101,1704384706259,-1065.96,0.00035068,2]
[310159102,1704384706270,-500.0,0.00035068,2]
[310159103,1704384706280,-1007.95,0.00035068,2]
[310159104,1704384706291,-11096.0,0.00035068,2]
[310159105,1704384706301,-500.0,0.00035068,2]
[310159106,1704384706311,-747.54,0.00035068,2]
[310159107,1704384706322,-760.32,0.00035068,2]
[310159108,1704384706331,-12156.16,0.00035068,2]
[310159109,1704384706342,-500.0,0.00035068,2]
[310159110,1704384706352,-834.78,0.00035068,2]
[310159111,1704384706365,-1718.28,0.00035068,2]
[310159112,1704384706376,-611.3,0.00035068,2]
[310159113,1704384706386,-697.33,0.00035068,2]
[310159114,1704384706396,-1413.99,0.00035068,2]
[310159115,1704384706407,-697.67,0.00035068,2]
[310159116,1704384706417,-1163.39,0.00035068,2]
[310159117,1704384706427,-1281.58,0.00035068,2]
[310159118,1704384706438,-883.92,0.00035068,2]
[310159119,1704384706448,-520.32,0.00035068,2]
[310159120,1704384706459,-160.10543101,0.00035068,2]
[310159121,1704384706469,-1053.47,0.00035068,2]
[310159122,1704384706480,-726.31,0.00035068,2]
[310159123,1704384706491,-773.87,0.00035068,2]
[310159124,1704384706502,-3994.67,0.00035068,2]
[310159125,1704384706512,-500.0,0.00035068,2]
[310159126,1704384706522,-891.04,0.00035068,2]
[310159127,1704384706532,-528.67,0.00035068,2]
[310159128,1704384706543,-2976.44,0.00035068,2]
[310159129,1704384706553,-902.18,0.00035068,2]
[310159130,1704384706563,-1129.74,0.00035068,2]
[310159131,1704384706574,-320.93361037,0.00035068,2]
[310159132,1704384706584,-500.0,0.00035068,2]
[310159133,1704384706594,-8714.16,0.00035068,2]
[310159134,1704384706604,-709.87,0.00035068,2]
[310159135,1704384706616,-573.28,0.00035068,2]
[310159136,1704384706626,-500.0,0.00035068,2]
[310159137,1704384706636,-617.6,0.00035068,2]
[310159138,1704384706647,-539.92,0.00035068,2]
[310159139,1704384706657,-500.0,0.00035068,2]
[310159140,1704384706667,-2375.82,0.00035068,2]
[310159141,1704384706678,-2912.75,0.00035068,2]
[310159142,1704384706688,-500.0,0.00035068,2]
[310159143,1704384706698,-880.41,0.00035068,2]
[310159144,1704384706709,-500.0,0.00035068,2]
[310159145,1704384706719,-990.05,0.00035068,2]
[310159146,1704384706728,-712.84,0.00035068,2]
[310159147,1704384706739,-500.0,0.00035068,2]
[310159148,1704384706748,-500.0,0.00035068,2]
[310159149,1704384706758,-1899.71,0.00035068,2]
[310159150,1704384706767,-704.89,0.00035068,2]
[310159151,1704384706777,-1360.68,0.00035068,2]
[310159152,1704384706787,-5800.0,0.00035068,2]
[310159153,1704384706797,-1752.91,0.00035068,2]
[310159154,1704384706807,-846.97,0.00035068,2]
[310159155,1704384706817,-4094.39,0.00035068,2]
[310159156,1704384706828,-500.0,0.00035068,2]
[310159157,1704384706837,-1446.57,0.00035068,2]
[310159158,1704384706848,-561.91,0.00035068,2]
[310159159,1704384706859,-1589.28,0.00035068,2]
[310159160,1704384706869,-500.0,0.00035068,2]
[310159161,1704384706879,-205.90631163,0.00035068,2]
[310159162,1704384706890,-834.84,0.00035068,2]
[310159163,1704384706899,-500.0,0.00035068,2]
[310159164,1704384706909,-1546.98,0.00035068,2]
[310159165,1704384706918,-1093.14,0.00035068,2]
[310159166,1704384706929,-564.13,0.00035068,2]
[310159167,1704384706939,-1945.09,0.00035068,2]
[310159168,1704384706950,-2073.94,0.00035068,2]
[310159169,1704384706961,-893.8,0.00035068,2]
[310159170,1704384706971,-900.7,0.00035068,2]
[310159171,1704384706982,-12496.39,0.00035068,2]
[310159172,1704384706992,-561.96,0.00035068,2]
[310159173,1704384707002,-1450.8,0.00035068,2]
[310159174,1704384707012,-514.0,0.00035068,2]
[310159175,1704384707022,-500.0,0.00035068,2]
[310159176,1704384707239,-1205.79,0.00035068,2]
[310159177,1704384707249,-500.0,0.00035068,2]
[310159178,1704384707260,-621.58,0.00035068,2]
[310159179,1704384707270,-500.0,0.00035068,2]
[310159180,1704384707280,-881.27,0.00035068,2]
[310159181,1704384707291,-10382.29,0.00035068,2]
[310159182,1704384707301,-3417.84,0.00035068,2]
[310159183,1704384707310,-2270.39,0.00035068,2]
[310159184,1704384707320,-500.0,0.00035068,2]
[310159185,1704384707329,-578.21,0.00035068,2]
[310159186,1704384707339,-987.12,0.00035068,2]
[310159187,1704384707350,-552.04,0.00035068,2]
[310159188,1704384707360,-1396.67,0.00035068,2]
[310159189,1704384707370,-656.43,0.00035068,2]
[310159190,1704384707380,-940.22,0.00035068,2]
[310159191,1704384707392,-500.0,0.00035068,2]
[310159192,1704384707402,-1079.52,0.00035068,2]
[310159193,1704384707412,-1439.1,0.00035068,2]
[310159194,1704384707422,-500.0,0.00035068,2]
[310159195,1704384707432,-500.0,0.00035068,2]
[310159196,1704384707441,-1088.28,0.00035068,2]
[310159197,1704384707451,-5839.49,0.00035068,2]
[310159198,1704384707462,-500.0,0.00035068,2]
[310159199,1704384707472,-1904.93,0.00035068,2]
[310159200,1704384707482,-1535.77,0.00035068,2]
[310159201,1704384707492,-500.0,0.00035068,2]
[310159202,1704384707502,-1236.96,0.00035068,2]
[310159203,1704384707511,-500.0,0.00035068,2]
[310159204,1704384707521,-500.0,0.00035068,2]
[310159205,1704384707531,-3487.16,0.00035068,2]
[310159206,1704384707540,-4880.8,0.00035068,2]
[310159207,1704384707550,-745.3,0.00035068,2]
[310159208,1704384707560,-568.13,0.00035068,2]
[310159209,1704384707570,-2004.58,0.00035068,2]
[310159210,1704384707580,-809.18,0.00035068,2]
[310159211,1704384707589,-8885.11,0.00035068,2]
[310159212,1704384707599,-1186.38,0.00035068,2]
[310159213,1704384707610,-500.0,0.00035068,2]
[310159214,1704384707621,-500.0,0.00035068,2]
[310159215,1704384707631,-1779.45,0.00035068,2]
[310159216,1704384707640,-1353.33,0.00035068,2]
[310159217,1704384707650,-1121.93,0.00035068,2]
[310159218,1704384707659,-500.0,0.00035068,2]
[310159219,1704384707669,-6829.27155038,0.00035144,2]
[310159220,1704384707679,-175.00833769,0.00035174,24]
[310159221,1704384707689,-807.1297,0.00035242,4]
[310159222,1704384707699,-3542.96281941,0.00035242,2]